[Event "*** Titled Tuesday Blitz"]
[Site "Chess.com"]
[Date "2019.10.01"]
[Round "4"]
[White "DeGrootteZ"]
[Black "SlavenPastar"]
[Result "1-0"]
[WhiteElo "2669"]
[BlackElo "2420"]
[TimeControl "180+2"]
[EndTime "13:54:14 PDT"]
[Termination "DeGrootteZ won on time"]

1. e4 {[%clk 0:03:01.9]} 1... e5 {[%clk 0:03:00.9]} 2. Nf3 {[%clk 0:03:03.1]}
2... Nc6 {[%clk 0:03:02.4]} 3. Bc4 {[%clk 0:03:04.5]} 3... Bc5 {[%clk
0:03:03.4]} 4. c3 {[%clk 0:03:04.9]} 4... Nf6 {[%clk 0:03:04.2]} 5. d3 {[%clk
0:03:06.2]} 5... O-O {[%clk 0:03:03.6]} 6. O-O {[%clk 0:03:06.8]} 6... d6 {[%clk
0:02:51.8]} 7. Bb3 {[%clk 0:03:03.4]} 7... h6 {[%clk 0:02:50.7]} 8. Nbd2 {[%clk
0:03:04.1]} 8... Re8 {[%clk 0:02:50.2]} 9. h3 {[%clk 0:03:04.1]} 9... Be6 {[%clk
0:02:50.6]} 10. Re1 {[%clk 0:03:04.9]} 10... d5 {[%clk 0:02:50.8]} 11. exd5
{[%clk 0:03:04.8]} 11... Bxd5 {[%clk 0:02:49.4]} 12. Ne4 {[%clk 0:03:02.6]}
12... Nxe4 {[%clk 0:02:31.5]} 13. dxe4 {[%clk 0:03:04.5]} 13... Bxb3 {[%clk
0:02:24.5]} 14. Qxb3 {[%clk 0:03:05.7]} 14... b6 {[%clk 0:02:06]} 15. Qc4 {[%clk
0:03:02.2]} 15... a5 {[%clk 0:02:02.6]} 16. a4 {[%clk 0:03:01.5]} 16... Qf6
{[%clk 0:01:58.9]} 17. Be3 {[%clk 0:02:59.5]} 17... Bxe3 {[%clk 0:01:56.5]} 18.
Rxe3 {[%clk 0:03:01.4]} 18... Rad8 {[%clk 0:01:55.3]} 19. Qe2 {[%clk 0:02:53]}
19... Qd6 {[%clk 0:01:41.2]} 20. Nh4 {[%clk 0:02:51.3]} 20... Ne7 {[%clk
0:01:40]} 21. Qg4 {[%clk 0:02:41.2]} 21... Qd7 {[%clk 0:01:31.2]} 22. Qh5 {[%clk
0:02:36.4]} 22... Qe6 {[%clk 0:00:56.3]} 23. Rg3 {[%clk 0:02:35.1]} 23... Rd6
{[%clk 0:00:50.3]} 24. Re1 {[%clk 0:02:32]} 24... Red8 {[%clk 0:00:50.5]} 25.
Ree3 {[%clk 0:02:31.4]} 25... Ng6 {[%clk 0:00:30.1]} 26. Nf5 {[%clk 0:02:20.7]}
26... Rd1+ {[%clk 0:00:31]} 27. Kh2 {[%clk 0:02:21.5]} 27... Rf1 {[%clk
0:00:28]} 28. Rgf3 {[%clk 0:01:54.2]} 28... Rd2 {[%clk 0:00:22.7]} 29. Kg3
{[%clk 0:01:29.8]} 29... Nf4 {[%clk 0:00:21.6]} 30. Qg4 {[%clk 0:01:28.1]} 30...
Qg6 {[%clk 0:00:07]} 31. Ne7+ {[%clk 0:01:28.8]} 1-0

[Event "*** Titled Tuesday Blitz"]
[Site "Chess.com"]
[Date "2019.10.01"]
[Round "4"]
[White "AliKa2810"]
[Black "ExploringChess"]
[Result "0-1"]
[WhiteElo "2608"]
[BlackElo "2861"]
[TimeControl "180+2"]
[EndTime "13:54:22 PDT"]
[Termination "ExploringChess won on time"]

1. e4 {[%clk 0:02:58.6]} 1... e6 {[%clk 0:03:00.3]} 2. d4 {[%clk 0:02:59.2]}
2... d5 {[%clk 0:02:59.7]} 3. Nd2 {[%clk 0:02:59.7]} 3... Be7 {[%clk 0:03:00]}
4. Bd3 {[%clk 0:02:58.4]} 4... c5 {[%clk 0:02:59.4]} 5. dxc5 {[%clk 0:02:59]}
5... Nf6 {[%clk 0:02:58.4]} 6. Qe2 {[%clk 0:02:58.4]} 6... O-O {[%clk
0:02:55.6]} 7. Ngf3 {[%clk 0:02:58.6]} 7... Na6 {[%clk 0:02:56.3]} 8. exd5
{[%clk 0:02:50]} 8... Nxc5 {[%clk 0:02:52.2]} 9. dxe6 {[%clk 0:02:38.9]} 9...
Nxd3+ {[%clk 0:02:52.9]} 10. cxd3 {[%clk 0:02:39.3]} 10... Bxe6 {[%clk
0:02:54.8]} 11. O-O {[%clk 0:02:40.6]} 11... Nd5 {[%clk 0:02:48.7]} 12. Ne4
{[%clk 0:02:40.6]} 12... h6 {[%clk 0:02:44.3]} 13. Bd2 {[%clk 0:02:36.6]} 13...
Qb6 {[%clk 0:02:42.1]} 14. Bc3 {[%clk 0:02:30.5]} 14... Rad8 {[%clk 0:02:41.5]}
15. Be5 {[%clk 0:02:17.4]} 15... Nb4 {[%clk 0:02:39.1]} 16. Rfd1 {[%clk
0:02:06.8]} 16... Bxa2 {[%clk 0:02:34.1]} 17. Nfd2 {[%clk 0:00:59.2]} 17... Nxd3
{[%clk 0:02:25.6]} 18. Bxg7 {[%clk 0:00:55.4]} 18... Kxg7 {[%clk 0:02:13.6]} 19.
Rxa2 {[%clk 0:00:56.8]} 19... f5 {[%clk 0:02:08.1]} 20. Nc4 {[%clk 0:00:54.7]}
20... Nf4 {[%clk 0:02:02.5]} 21. Qc2 {[%clk 0:00:41]} 21... Rxd1+ {[%clk
0:01:36.1]} 22. Qxd1 {[%clk 0:00:41.9]} 22... Qc6 {[%clk 0:01:38]} 23. Ne3
{[%clk 0:00:13.3]} 23... fxe4 {[%clk 0:01:29.3]} 24. Rxa7 {[%clk 0:00:03.6]}
24... Nd3 {[%clk 0:01:23.8]} 25. Qg4+ {[%clk 0:00:03.7]} 25... Qg6 {[%clk
0:01:22.7]} 26. Qd7 {[%clk 0:00:04.8]} 26... Qf6 {[%clk 0:01:15.4]} 27. Ng4
{[%clk 0:00:04.6]} 27... Qxb2 {[%clk 0:01:14.4]} 28. Qxe7+ {[%clk 0:00:05.5]}
28... Rf7 {[%clk 0:01:10.4]} 0-1

[Event "*** Titled Tuesday Blitz"]
[Site "Chess.com"]
[Date "2019.10.01"]
[Round "4"]
[White "smshk35"]
[Black "MarcoRiehle"]
[Result "0-1"]
[WhiteElo "2369"]
[BlackElo "2591"]
[TimeControl "180+2"]
[EndTime "13:54:22 PDT"]
[Termination "MarcoRiehle won by resignation"]

1. e4 {[%clk 0:03:01.9]} 1... e5 {[%clk 0:03:00.4]} 2. Nf3 {[%clk 0:03:02.3]}
2... Nf6 {[%clk 0:03:01.6]} 3. Nxe5 {[%clk 0:03:03.1]} 3... Nxe4 {[%clk
0:03:02.8]} 4. Qe2 {[%clk 0:03:03.4]} 4... Qe7 {[%clk 0:03:04.1]} 5. Qxe4 {[%clk
0:03:01.3]} 5... d6 {[%clk 0:03:05.5]} 6. d4 {[%clk 0:02:55.7]} 6... dxe5 {[%clk
0:03:05.8]} 7. Qxe5 {[%clk 0:02:56.3]} 7... Qxe5+ {[%clk 0:03:06]} 8. dxe5
{[%clk 0:02:58.2]} 8... Bf5 {[%clk 0:03:07.3]} 9. Bd3 {[%clk 0:02:58.1]} 9...
Bxd3 {[%clk 0:03:07.6]} 10. cxd3 {[%clk 0:03:00]} 10... Nc6 {[%clk 0:03:09.2]}
11. f4 {[%clk 0:03:00.4]} 11... Nb4 {[%clk 0:03:09]} 12. Na3 {[%clk 0:02:49.8]}
12... Nxd3+ {[%clk 0:03:08.3]} 13. Ke2 {[%clk 0:02:49.5]} 13... O-O-O {[%clk
0:03:09.7]} 14. Rd1 {[%clk 0:02:47.4]} 14... Nxc1+ {[%clk 0:03:10.2]} 15. Raxc1
{[%clk 0:02:48]} 15... Bxa3 {[%clk 0:03:11.5]} 16. bxa3 {[%clk 0:02:48.8]} 16...
Rhe8 {[%clk 0:03:12.5]} 17. Ke3 {[%clk 0:02:46.1]} 17... Re6 {[%clk 0:03:09.7]}
18. Rxd8+ {[%clk 0:02:40.3]} 18... Kxd8 {[%clk 0:03:09.6]} 19. Ke4 {[%clk
0:02:41.5]} 19... Ra6 {[%clk 0:03:09.1]} 20. Rc3 {[%clk 0:02:41.8]} 20... Ra4+
{[%clk 0:03:08.2]} 21. Kf5 {[%clk 0:02:41.5]} 21... c6 {[%clk 0:03:00.5]} 22.
Rg3 {[%clk 0:02:26.2]} 22... g6+ {[%clk 0:02:54.7]} 23. Kg5 {[%clk 0:02:21.2]}
23... Ke7 {[%clk 0:02:53.7]} 24. Rh3 {[%clk 0:02:13]} 24... h6+ {[%clk
0:02:49.9]} 25. Kg4 {[%clk 0:01:29.6]} 25... g5 {[%clk 0:02:45.2]} 26. Rxh6
{[%clk 0:01:27.5]} 26... gxf4 {[%clk 0:02:44.3]} 27. Rh3 {[%clk 0:01:11.6]}
27... f3+ {[%clk 0:02:44.6]} 28. Kxf3 {[%clk 0:01:10]} 28... Rxa3+ {[%clk
0:02:44.1]} 29. Ke4 {[%clk 0:01:06]} 29... Rxa2 {[%clk 0:02:39.3]} 30. Rg3
{[%clk 0:01:01]} 30... a5 {[%clk 0:02:39.1]} 31. h4 {[%clk 0:01:01.8]} 31...
Ra4+ {[%clk 0:02:40.5]} 32. Kf5 {[%clk 0:01:00.6]} 32... Rxh4 {[%clk 0:02:42.4]}
33. Rg7 {[%clk 0:01:01.5]} 33... Rb4 {[%clk 0:02:29.6]} 34. g4 {[%clk
0:00:59.3]} 34... a4 {[%clk 0:02:12.3]} 35. g5 {[%clk 0:00:59.6]} 35... Kf8
{[%clk 0:02:13.4]} 36. Rh7 {[%clk 0:00:56.7]} 36... a3 {[%clk 0:02:11.5]} 37. g6
{[%clk 0:00:34.3]} 37... fxg6+ {[%clk 0:02:08.5]} 38. Kxg6 {[%clk 0:00:35.3]}
38... a2 {[%clk 0:02:02.9]} 39. Rh8+ {[%clk 0:00:15.6]} 39... Ke7 {[%clk
0:02:01.9]} 40. Ra8 {[%clk 0:00:17.5]} 40... Ke6 {[%clk 0:01:54.9]} 0-1

[Event "*** Titled Tuesday Blitz"]
[Site "Chess.com"]
[Date "2019.10.01"]
[Round "4"]
[White "Vuk2000"]
[Black "Casablanca"]
[Result "1-0"]
[WhiteElo "2800"]
[BlackElo "2191"]
[TimeControl "180+2"]
[EndTime "13:54:30 PDT"]
[Termination "Vuk2000 won by resignation"]

1. d4 {[%clk 0:03:01.9]} 1... Nf6 {[%clk 0:02:59.6]} 2. Bg5 {[%clk 0:03:02.9]}
2... g6 {[%clk 0:02:54]} 3. Bxf6 {[%clk 0:03:03.7]} 3... exf6 {[%clk 0:02:55.4]}
4. c4 {[%clk 0:03:05.5]} 4... Bg7 {[%clk 0:02:55.2]} 5. Nc3 {[%clk 0:03:06.5]}
5... f5 {[%clk 0:02:56.5]} 6. g3 {[%clk 0:03:07.8]} 6... O-O {[%clk 0:02:58.3]}
7. Bg2 {[%clk 0:03:09.1]} 7... d6 {[%clk 0:02:54.2]} 8. e3 {[%clk 0:03:09.8]}
8... c6 {[%clk 0:02:54.8]} 9. Nge2 {[%clk 0:03:10.5]} 9... Be6 {[%clk 0:02:56]}
10. Qd3 {[%clk 0:03:10.3]} 10... Na6 {[%clk 0:02:52.1]} 11. a3 {[%clk
0:03:03.8]} 11... Nc7 {[%clk 0:02:53.1]} 12. O-O {[%clk 0:03:02.9]} 12... d5
{[%clk 0:02:54.4]} 13. cxd5 {[%clk 0:03:03.8]} 13... Nxd5 {[%clk 0:02:55.6]} 14.
Nxd5 {[%clk 0:02:57.3]} 14... Bxd5 {[%clk 0:02:56.7]} 15. Nc3 {[%clk 0:02:56.2]}
15... Bxg2 {[%clk 0:02:57.6]} 16. Kxg2 {[%clk 0:02:57.2]} 16... h5 {[%clk
0:02:55.5]} 17. h4 {[%clk 0:02:53.1]} 17... Qe7 {[%clk 0:02:53.3]} 18. Rfd1
{[%clk 0:02:52.7]} 18... Rad8 {[%clk 0:02:54.4]} 19. Qc4 {[%clk 0:02:53.9]}
19... Rfe8 {[%clk 0:02:55.1]} 20. Rd2 {[%clk 0:02:51.1]} 20... Qe6 {[%clk
0:02:56.2]} 21. Qe2 {[%clk 0:02:42.5]} 21... Rd7 {[%clk 0:02:43.1]} 22. Rad1
{[%clk 0:02:42.3]} 22... Red8 {[%clk 0:02:43.2]} 23. Qf3 {[%clk 0:02:38.9]}
23... a6 {[%clk 0:02:37.6]} 24. Na4 {[%clk 0:02:39.3]} 24... Qd5 {[%clk
0:02:36.2]} 25. Nc5 {[%clk 0:02:37.5]} 25... Qxf3+ {[%clk 0:02:37.1]} 26. Kxf3
{[%clk 0:02:38.4]} 26... Rc7 {[%clk 0:02:38]} 27. Rc1 {[%clk 0:02:39.2]} 27...
Bf8 {[%clk 0:02:37.4]} 28. Nd3 {[%clk 0:02:39.6]} 28... Bg7 {[%clk 0:02:23.2]}
29. Rdc2 {[%clk 0:02:34.2]} 29... Re7 {[%clk 0:02:20.8]} 30. b4 {[%clk 0:02:29]}
30... Kf8 {[%clk 0:02:15]} 31. a4 {[%clk 0:02:29.9]} 31... Rd5 {[%clk
0:02:09.2]} 32. Nc5 {[%clk 0:02:24.5]} 32... Kg8 {[%clk 0:01:38.4]} 33. b5
{[%clk 0:02:16.3]} 33... axb5 {[%clk 0:01:38.1]} 34. axb5 {[%clk 0:02:17.1]}
34... cxb5 {[%clk 0:01:39.4]} 35. Rb1 {[%clk 0:02:18.3]} 35... Rc7 {[%clk
0:01:36.5]} 36. Rxb5 {[%clk 0:01:59.8]} 36... Bf8 {[%clk 0:01:13.3]} 37. Rxb7
{[%clk 0:01:58.3]} 37... Rxb7 {[%clk 0:01:12.1]} 38. Nxb7 {[%clk 0:01:56.9]}
38... Rb5 {[%clk 0:01:13.2]} 39. Nc5 {[%clk 0:01:58.1]} 39... Bxc5 {[%clk
0:01:10.9]} 40. dxc5 {[%clk 0:01:45.1]} 40... Kf8 {[%clk 0:01:12]} 41. c6 {[%clk
0:01:45]} 41... Rb8 {[%clk 0:01:13.2]} 42. c7 {[%clk 0:01:46.5]} 42... Rc8
{[%clk 0:01:14.3]} 43. Kf4 {[%clk 0:01:48.1]} 43... Ke7 {[%clk 0:01:15.9]} 44.
Kg5 {[%clk 0:01:49.1]} 44... Ke6 {[%clk 0:01:16.8]} 45. Kh6 {[%clk 0:01:40.1]}
45... Kf6 {[%clk 0:01:12.5]} 46. Rc6+ {[%clk 0:01:40.2]} 46... Ke7 {[%clk
0:01:13.2]} 47. Kg7 {[%clk 0:01:40.9]} 47... Ke8 {[%clk 0:01:12.9]} 48. Kf6
{[%clk 0:01:39.9]} 48... Kd7 {[%clk 0:01:13.3]} 49. Rc3 {[%clk 0:01:39.6]} 49...
Ke8 {[%clk 0:01:13.7]} 50. Rc4 {[%clk 0:01:40.1]} 50... Kf8 {[%clk 0:00:55.9]}
51. Rb4 {[%clk 0:01:41.2]} 1-0

[Event "*** Titled Tuesday Blitz"]
[Site "Chess.com"]
[Date "2019.10.01"]
[Round "4"]
[White "mbojan"]
[Black "Saitama_Hero"]
[Result "1-0"]
[WhiteElo "2549"]
[BlackElo "2336"]
[TimeControl "180+2"]
[EndTime "13:54:30 PDT"]
[Termination "mbojan won by checkmate"]

1. e4 {[%clk 0:03:01.9]} 1... e6 {[%clk 0:02:59.9]} 2. d4 {[%clk 0:03:03]} 2...
d5 {[%clk 0:03:01.4]} 3. Nc3 {[%clk 0:03:04.6]} 3... Bb4 {[%clk 0:03:01.1]} 4.
e5 {[%clk 0:03:04.7]} 4... c5 {[%clk 0:03:02.5]} 5. Bd2 {[%clk 0:03:06]} 5...
Ne7 {[%clk 0:03:01.4]} 6. a3 {[%clk 0:03:06.7]} 6... Bxc3 {[%clk 0:03:01.5]} 7.
Bxc3 {[%clk 0:03:08.6]} 7... b6 {[%clk 0:03:00.9]} 8. Bb5+ {[%clk 0:03:09.2]}
8... Bd7 {[%clk 0:03:02.1]} 9. Bd3 {[%clk 0:03:09.9]} 9... Nbc6 {[%clk
0:03:03.4]} 10. f4 {[%clk 0:03:10.1]} 10... cxd4 {[%clk 0:03:02.4]} 11. Bd2
{[%clk 0:03:10.3]} 11... g5 {[%clk 0:03:02.1]} 12. Nf3 {[%clk 0:03:06.4]} 12...
gxf4 {[%clk 0:03:01.1]} 13. Bxf4 {[%clk 0:03:02.4]} 13... Ng6 {[%clk 0:03:01.3]}
14. Bg5 {[%clk 0:03:03.8]} 14... Qc7 {[%clk 0:03:00.3]} 15. Bf6 {[%clk
0:03:05.1]} 15... Rg8 {[%clk 0:03:00.4]} 16. O-O {[%clk 0:03:00]} 16... Rc8
{[%clk 0:02:21.6]} 17. g3 {[%clk 0:02:51.7]} 17... h5 {[%clk 0:01:49.1]} 18. Kh1
{[%clk 0:02:41.7]} 18... Ngxe5 {[%clk 0:01:40.1]} 19. Nxe5 {[%clk 0:02:25.1]}
19... Nxe5 {[%clk 0:01:42]} 20. Qxh5 {[%clk 0:02:24.2]} 20... Nxd3 {[%clk
0:01:38.4]} 21. cxd3 {[%clk 0:02:26.1]} 21... Bb5 {[%clk 0:01:15.3]} 22. Qh7
{[%clk 0:02:16.7]} 22... Rg6 {[%clk 0:01:08.6]} 23. Bg7 {[%clk 0:01:54.5]} 23...
Qe7 {[%clk 0:00:24.7]} 24. Rac1 {[%clk 0:01:43.1]} 24... Rxc1 {[%clk 0:00:20.7]}
25. Rxc1 {[%clk 0:01:30.8]} 25... Bxd3 {[%clk 0:00:22.2]} 26. Qg8+ {[%clk
0:01:27.1]} 26... Kd7 {[%clk 0:00:23.4]} 27. Qc8+ {[%clk 0:01:27.6]} 27... Kd6
{[%clk 0:00:24.7]} 28. Qb8+ {[%clk 0:01:28.5]} 28... Kd7 {[%clk 0:00:20.9]} 29.
Rc7+ {[%clk 0:01:16.3]} 29... Kd6 {[%clk 0:00:21.4]} 30. Rxa7+ {[%clk
0:01:14.3]} 30... Kc6 {[%clk 0:00:17.4]} 31. Rxe7 {[%clk 0:01:10.7]} 31... Rxg7
{[%clk 0:00:18.2]} 32. a4 {[%clk 0:01:08.5]} 32... Rg6 {[%clk 0:00:15.5]} 33.
Qc7# {[%clk 0:01:07.5]} 1-0

[Event "*** Titled Tuesday Blitz"]
[Site "Chess.com"]
[Date "2019.10.01"]
[Round "4"]
[White "13MiRacLe"]
[Black "filali-marouan"]
[Result "1-0"]
[WhiteElo "2507"]
[BlackElo "2327"]
[TimeControl "180+2"]
[EndTime "13:54:53 PDT"]
[Termination "13MiRacLe won on time"]

1. e4 {[%clk 0:03:01.9]} 1... c6 {[%clk 0:03:01.9]} 2. d4 {[%clk 0:03:02.6]}
2... d5 {[%clk 0:03:02.5]} 3. Nc3 {[%clk 0:03:04.2]} 3... dxe4 {[%clk
0:02:55.9]} 4. Nxe4 {[%clk 0:03:06.1]} 4... Nf6 {[%clk 0:02:50]} 5. Nxf6+ {[%clk
0:03:06.5]} 5... exf6 {[%clk 0:02:51.7]} 6. c3 {[%clk 0:03:08.1]} 6... Bd6
{[%clk 0:02:51.8]} 7. Bd3 {[%clk 0:03:09.7]} 7... O-O {[%clk 0:02:53.3]} 8. Qc2
{[%clk 0:03:11.3]} 8... g6 {[%clk 0:02:52.5]} 9. h4 {[%clk 0:03:11.6]} 9... Re8+
{[%clk 0:02:54.4]} 10. Ne2 {[%clk 0:03:12.5]} 10... Nd7 {[%clk 0:02:47.6]} 11.
h5 {[%clk 0:03:13.4]} 11... Nf8 {[%clk 0:02:49.1]} 12. hxg6 {[%clk 0:03:11.2]}
12... fxg6 {[%clk 0:02:50.6]} 13. Bh6 {[%clk 0:02:59.8]} 13... Be6 {[%clk
0:02:44]} 14. O-O-O {[%clk 0:02:45.6]} 14... Qc7 {[%clk 0:02:33.1]} 15. g3
{[%clk 0:02:31.9]} 15... Rad8 {[%clk 0:02:13.3]} 16. Kb1 {[%clk 0:02:28.4]}
16... c5 {[%clk 0:02:13.6]} 17. Nf4 {[%clk 0:02:19.5]} 17... Bg4 {[%clk
0:01:57.4]} 18. Qb3+ {[%clk 0:01:53.8]} 18... Ne6 {[%clk 0:01:34.5]} 19. f3
{[%clk 0:01:15.1]} 19... c4 {[%clk 0:00:31.4]} 20. Bxc4 {[%clk 0:01:05.1]} 20...
Bf5+ {[%clk 0:00:25.8]} 21. Ka1 {[%clk 0:01:06]} 21... Bxf4 {[%clk 0:00:20.9]}
22. Bxf4 {[%clk 0:01:06.8]} 22... Qb6 {[%clk 0:00:21.3]} 23. g4 {[%clk
0:00:58.4]} 23... Kh8 {[%clk 0:00:21.8]} 24. Bc1 {[%clk 0:00:35.7]} 24... Qxb3
{[%clk 0:00:18.5]} 25. Bxb3 {[%clk 0:00:34.2]} 1-0

[Event "*** Titled Tuesday Blitz"]
[Site "Chess.com"]
[Date "2019.10.01"]
[Round "4"]
[White "IvanRadivojevic"]
[Black "XDPS"]
[Result "0-1"]
[WhiteElo "2396"]
[BlackElo "2772"]
[TimeControl "180+2"]
[EndTime "13:55:00 PDT"]
[Termination "XDPS won by resignation"]

1. e4 {[%clk 0:03:01.9]} 1... e5 {[%clk 0:02:59.7]} 2. Nf3 {[%clk 0:03:02.5]}
2... Nc6 {[%clk 0:03:00.9]} 3. Bc4 {[%clk 0:03:03.9]} 3... Nf6 {[%clk
0:03:01.3]} 4. d3 {[%clk 0:03:04.9]} 4... Bc5 {[%clk 0:03:01.7]} 5. O-O {[%clk
0:03:03]} 5... O-O {[%clk 0:03:02.2]} 6. c3 {[%clk 0:03:03.3]} 6... d6 {[%clk
0:03:02.7]} 7. Nbd2 {[%clk 0:03:02.4]} 7... a5 {[%clk 0:03:03.6]} 8. a4 {[%clk
0:03:01.1]} 8... h6 {[%clk 0:03:01.9]} 9. Re1 {[%clk 0:03:00.8]} 9... Ng4 {[%clk
0:03:00.3]} 10. Re2 {[%clk 0:03:01.7]} 10... Kh8 {[%clk 0:03:01.7]} 11. h3
{[%clk 0:03:01.7]} 11... Nxf2 {[%clk 0:03:02.7]} 12. Rxf2 {[%clk 0:03:01.8]}
12... f5 {[%clk 0:03:03.7]} 13. Nf1 {[%clk 0:02:30.3]} 13... fxe4 {[%clk
0:02:57.1]} 14. dxe4 {[%clk 0:02:32.2]} 14... Bxf2+ {[%clk 0:02:56.3]} 15. Kxf2
{[%clk 0:02:34.1]} 15... Qh4+ {[%clk 0:02:54.9]} 16. Kg1 {[%clk 0:02:32.1]}
16... Qxe4 {[%clk 0:02:55.5]} 17. Bd5 {[%clk 0:02:20.9]} 17... Qf5 {[%clk
0:02:54.2]} 18. Ng3 {[%clk 0:02:14.8]} 18... Qg6 {[%clk 0:02:54.5]} 19. Kh2
{[%clk 0:02:03.9]} 19... Ne7 {[%clk 0:02:49.4]} 20. Be4 {[%clk 0:02:00.6]} 20...
Qe6 {[%clk 0:02:47.9]} 21. Nh4 {[%clk 0:01:06.5]} 21... d5 {[%clk 0:02:44.7]}
22. Bf3 {[%clk 0:01:01]} 22... e4 {[%clk 0:02:39.1]} 23. Bg4 {[%clk 0:00:55]}
23... Qd6 {[%clk 0:02:02.8]} 24. c4 {[%clk 0:00:42.1]} 24... d4 {[%clk
0:01:39.8]} 25. Bxc8 {[%clk 0:00:33.8]} 25... Raxc8 {[%clk 0:01:41.7]} 26. Bd2
{[%clk 0:00:26.7]} 26... e3 {[%clk 0:01:39.1]} 27. Be1 {[%clk 0:00:26.1]} 27...
c5 {[%clk 0:01:36]} 28. Qg4 {[%clk 0:00:21.7]} 28... Rf4 {[%clk 0:01:21.9]} 29.
Qh5 {[%clk 0:00:16.5]} 29... b6 {[%clk 0:01:17.9]} 30. Kg1 {[%clk 0:00:17.5]}
30... Rcf8 {[%clk 0:01:17.1]} 31. Nf3 {[%clk 0:00:18.4]} 31... Nf5 {[%clk
0:01:14.7]} 32. Ne2 {[%clk 0:00:19]} 32... g6 {[%clk 0:01:08.1]} 33. Nxf4 {[%clk
0:00:14.6]} 33... gxh5 {[%clk 0:01:07.3]} 34. Nxh5 {[%clk 0:00:16]} 34... d3
{[%clk 0:01:06.9]} 35. Bc3+ {[%clk 0:00:16.5]} 35... Nd4 {[%clk 0:01:07.6]} 36.
Re1 {[%clk 0:00:08.2]} 36... Rxf3 {[%clk 0:01:08.1]} 37. gxf3 {[%clk 0:00:08.2]}
37... d2 {[%clk 0:01:08.6]} 0-1

[Event "*** Titled Tuesday Blitz"]
[Site "Chess.com"]
[Date "2019.10.01"]
[Round "4"]
[White "Dhaydon19"]
[Black "VincentKeymer"]
[Result "0-1"]
[WhiteElo "2681"]
[BlackElo "2628"]
[TimeControl "180+2"]
[EndTime "13:55:03 PDT"]
[Termination "VincentKeymer won by resignation"]

1. e4 {[%clk 0:02:36.6]} 1... c5 {[%clk 0:02:59.9]} 2. Nf3 {[%clk 0:02:37.9]}
2... e6 {[%clk 0:03:01.1]} 3. d4 {[%clk 0:02:39.3]} 3... cxd4 {[%clk 0:03:02.4]}
4. Nxd4 {[%clk 0:02:40.6]} 4... a6 {[%clk 0:03:03.9]} 5. Bd3 {[%clk 0:02:41.4]}
5... Nf6 {[%clk 0:03:03.5]} 6. Nd2 {[%clk 0:02:41.5]} 6... d6 {[%clk 0:03:03.1]}
7. c4 {[%clk 0:02:42]} 7... Be7 {[%clk 0:03:01.8]} 8. O-O {[%clk 0:02:42.1]}
8... O-O {[%clk 0:03:03]} 9. b3 {[%clk 0:02:42.8]} 9... Nc6 {[%clk 0:02:59.5]}
10. Bb2 {[%clk 0:02:42.7]} 10... Nxd4 {[%clk 0:02:49.5]} 11. Bxd4 {[%clk
0:02:43.3]} 11... e5 {[%clk 0:02:51.1]} 12. Bb2 {[%clk 0:02:43.7]} 12... Bg4
{[%clk 0:02:51.8]} 13. f3 {[%clk 0:02:44.2]} 13... Be6 {[%clk 0:02:52.8]} 14.
Re1 {[%clk 0:02:43.3]} 14... Qb6+ {[%clk 0:02:43.8]} 15. Kh1 {[%clk 0:02:43.9]}
15... Nd7 {[%clk 0:02:44.9]} 16. Nf1 {[%clk 0:02:44.5]} 16... Bg5 {[%clk
0:02:41.7]} 17. Bc1 {[%clk 0:02:30.4]} 17... Bxc1 {[%clk 0:02:41.8]} 18. Rxc1
{[%clk 0:02:32.3]} 18... a5 {[%clk 0:02:42.7]} 19. Ne3 {[%clk 0:02:27.8]} 19...
Nc5 {[%clk 0:02:43.8]} 20. Bc2 {[%clk 0:02:28.3]} 20... Rfd8 {[%clk 0:02:40.8]}
21. Qd2 {[%clk 0:02:27.9]} 21... a4 {[%clk 0:02:32.5]} 22. b4 {[%clk 0:02:27.4]}
22... Na6 {[%clk 0:02:33.3]} 23. a3 {[%clk 0:02:28]} 23... Nb8 {[%clk
0:02:34.1]} 24. Red1 {[%clk 0:02:25]} 24... Nc6 {[%clk 0:02:34.6]} 25. Bd3
{[%clk 0:02:11.4]} 25... Nd4 {[%clk 0:02:34.6]} 26. Rc3 {[%clk 0:02:12.6]} 26...
Rac8 {[%clk 0:02:23.6]} 27. Nd5 {[%clk 0:01:53]} 27... Bxd5 {[%clk 0:02:23.1]}
28. exd5 {[%clk 0:01:54.9]} 28... Qc7 {[%clk 0:02:01.4]} 29. Qb2 {[%clk
0:01:30.9]} 29... Qe7 {[%clk 0:01:55.7]} 30. Rdc1 {[%clk 0:01:27.6]} 30... b6
{[%clk 0:01:54.6]} 31. Bc2 {[%clk 0:01:23.6]} 31... Qe8 {[%clk 0:01:52.6]} 32.
Bd3 {[%clk 0:01:23.3]} 32... f5 {[%clk 0:01:52.3]} 33. c5 {[%clk 0:01:23.6]}
33... bxc5 {[%clk 0:01:47.4]} 34. bxc5 {[%clk 0:01:25.5]} 34... dxc5 {[%clk
0:01:48.4]} 35. Rxc5 {[%clk 0:01:27.4]} 35... Rxc5 {[%clk 0:01:49]} 36. Rxc5
{[%clk 0:01:29.3]} 36... Rb8 {[%clk 0:01:47.7]} 37. Qc3 {[%clk 0:01:22.6]} 37...
e4 {[%clk 0:01:31.6]} 38. fxe4 {[%clk 0:01:21.9]} 38... fxe4 {[%clk 0:01:31.8]}
39. Bc2 {[%clk 0:00:47.1]} 39... e3 {[%clk 0:01:25]} 40. h3 {[%clk 0:00:38.4]}
40... Nxc2 {[%clk 0:01:23.4]} 0-1

[Event "*** Titled Tuesday Blitz"]
[Site "Chess.com"]
[Date "2019.10.01"]
[Round "4"]
[White "RU_B9"]
[Black "tteshan"]
[Result "0-1"]
[WhiteElo "1750"]
[BlackElo "2261"]
[TimeControl "180+2"]
[EndTime "13:55:03 PDT"]
[Termination "tteshan won on time"]

1. Nf3 {[%clk 0:02:59.6]} 1... Nf6 {[%clk 0:02:56.9]} 2. c4 {[%clk 0:03:00.1]}
2... g6 {[%clk 0:02:57.5]} 3. Nc3 {[%clk 0:03:00.9]} 3... Bg7 {[%clk 0:02:59.2]}
4. e4 {[%clk 0:03:02]} 4... d6 {[%clk 0:03:00.8]} 5. d4 {[%clk 0:03:03.3]} 5...
O-O {[%clk 0:03:02.2]} 6. Be2 {[%clk 0:03:04.8]} 6... e5 {[%clk 0:03:01.5]} 7.
d5 {[%clk 0:03:05.7]} 7... a5 {[%clk 0:02:59.8]} 8. O-O {[%clk 0:03:05.5]} 8...
Na6 {[%clk 0:03:01.3]} 9. Bg5 {[%clk 0:03:03.9]} 9... h6 {[%clk 0:03:01.7]} 10.
Bh4 {[%clk 0:03:04.9]} 10... Nc5 {[%clk 0:03:00.8]} 11. Nd2 {[%clk 0:03:03.8]}
11... Qe8 {[%clk 0:02:57.2]} 12. f3 {[%clk 0:02:56.2]} 12... h5 {[%clk
0:02:53.3]} 13. Rb1 {[%clk 0:02:44.1]} 13... Nh7 {[%clk 0:02:49.7]} 14. b3
{[%clk 0:02:41.9]} 14... Bh6 {[%clk 0:02:37.1]} 15. a3 {[%clk 0:02:40.6]} 15...
f5 {[%clk 0:02:32.7]} 16. b4 {[%clk 0:02:40]} 16... axb4 {[%clk 0:02:34.1]} 17.
axb4 {[%clk 0:02:40.5]} 17... Na6 {[%clk 0:02:35.8]} 18. c5 {[%clk 0:02:10.5]}
18... dxc5 {[%clk 0:02:29]} 19. Bb5 {[%clk 0:02:05.2]} 19... Bd7 {[%clk
0:02:17.5]} 20. Bxa6 {[%clk 0:02:05.2]} 20... Rxa6 {[%clk 0:02:01.2]} 21. bxc5
{[%clk 0:02:05.6]} 21... g5 {[%clk 0:01:44.4]} 22. Bf2 {[%clk 0:01:58.2]} 22...
g4 {[%clk 0:01:44.9]} 23. Rxb7 {[%clk 0:01:54.1]} 23... Rg6 {[%clk 0:01:36.8]}
24. Kh1 {[%clk 0:01:24.3]} 24... f4 {[%clk 0:01:35.5]} 25. Rxc7 {[%clk
0:01:23.8]} 25... g3 {[%clk 0:01:35.7]} 26. Bg1 {[%clk 0:01:20.7]} 26... gxh2
{[%clk 0:01:35.8]} 27. Bf2 {[%clk 0:01:18.2]} 27... Qd8 {[%clk 0:01:19.7]} 28.
d6 {[%clk 0:01:08.7]} 28... Qg5 {[%clk 0:01:19.4]} 29. g3 {[%clk 0:00:12.1]}
29... fxg3 {[%clk 0:01:19.9]} 30. Rxd7 {[%clk 0:00:06]} 30... gxf2 {[%clk
0:00:50.3]} 31. Qb3+ {[%clk 0:00:05.7]} 31... Kh8 {[%clk 0:00:50.7]} 0-1